bitfinex/quotes_BTCUSD_20250110
["timestamp","ask_amount","ask_price","bid_price","bid_amount"]
[1736498986298,0.0776,94829.0,94799.0,0.048]
[1736498986427,0.0776,94829.0,94816.0,0.210934]
[1736498986636,0.00027875,94817.0,94816.0,0.218454]
[1736498986862,0.00027875,94817.0,94816.0,0.32275376]
[1736498987497,0.00018602,94817.0,94816.0,0.32275376]
[1736498988663,0.00018602,94817.0,94816.0,0.32875376]
[1736498989067,0.00018602,94817.0,94816.0,0.33075376]
[1736498989283,0.00018602,94817.0,94816.0,0.61399783]
[1736498989915,0.00018602,94817.0,94816.0,0.33075376]
[1736498991263,0.00018602,94817.0,94816.0,0.34143274]
[1736498995572,0.00018602,94817.0,94816.0,0.57703536]
[1736498996774,0.00018602,94817.0,94816.0,0.34143274]
[1736498998365,0.00018602,94817.0,94816.0,0.22961298]
[1736498998592,0.08148602,94817.0,94816.0,0.226454]
[1736498998800,0.08148602,94817.0,94816.0,0.01552]
[1736498999219,0.12908602,94817.0,94816.0,0.01352]
[1736498999430,0.12908602,94817.0,94809.0,0.23560262]
[1736498999431,0.13040437,94817.0,94809.0,0.23560262]
[1736498999639,0.210966,94802.0,94799.0,0.23560262]
[1736498999840,0.0826,94800.0,94799.0,0.23560262]
[1736499000453,0.0826,94800.0,94795.0,0.42196]
[1736499000669,0.0826,94800.0,94779.0,0.23560262]
[1736499000670,0.00131855,94799.0,94788.0,0.421993]
[1736499001033,0.00131855,94799.0,94792.0,0.210986]
[1736499001437,0.00131855,94799.0,94792.0,0.421973]
[1736499001647,0.0826,94800.0,94792.0,0.210986]
[1736499001872,0.0826,94800.0,94796.0,0.210977]
[1736499002085,0.001,94799.0,94796.0,0.210977]
[1736499002488,0.00131862,94799.0,94796.0,0.210977]
[1736499002644,0.00131862,94799.0,94781.0,0.0279586]
[1736499002853,0.00131862,94799.0,94789.0,0.210993]
[1736499003078,0.077,94792.0,94781.0,0.009863]
[1736499003289,0.00131882,94791.0,94782.0,0.21101]
[1736499003443,0.00131882,94791.0,94781.0,0.009863]
[1736499003444,0.00131882,94791.0,94778.0,0.2111032]
[1736499004143,0.52628376,94790.0,94778.0,8.52e-05]
[1736499004352,0.210997,94788.0,94778.0,8.52e-05]
[1736499004527,0.00131892,94787.0,94778.0,8.52e-05]
[1736499005191,0.211001,94786.0,94778.0,8.52e-05]
[1736499005394,0.10429976,94790.0,94778.0,8.52e-05]
[1736499005605,0.00131891,94789.0,94778.0,8.52e-05]
[1736499006249,0.00014638,94790.0,94778.0,8.52e-05]
[1736499006420,0.001,94787.0,94778.0,8.52e-05]
[1736499006657,0.001,94787.0,94784.0,0.211005]
[1736499007284,0.001,94787.0,94784.0,0.422011]
[1736499007486,0.001,94787.0,94784.0,0.211005]
[1736499007685,0.001,94787.0,94784.0,0.422011]
[1736499008371,0.00014638,94790.0,94789.0,0.210994]
[1736499008799,0.00014638,94790.0,94789.0,0.20199398]
[1736499009141,0.00014638,94790.0,94784.0,0.211005]
[1736499009388,0.00014638,94790.0,94788.0,0.210996]
[1736499010339,0.00114638,94790.0,94788.0,0.210996]
[1736499012205,0.00014638,94790.0,94788.0,0.210996]
[1736499012746,0.00114638,94790.0,94788.0,0.210996]
[1736499013551,0.00114638,94790.0,94780.0,0.211014]
[1736499014170,0.0013188,94789.0,94780.0,0.211014]
[1736499015292,0.0013188,94789.0,94779.0,0.211016]
[1736499015293,0.0476,94788.0,94778.0,8.52e-05]
[1736499015508,0.08221889,94787.0,94779.0,0.211017]
[1736499016150,0.13751342,94787.0,94778.0,8.52e-05]
[1736499016366,0.211001,94786.0,94778.0,8.52e-05]
[1736499016657,0.00131892,94785.0,94778.0,8.52e-05]
[1736499017323,0.211006,94784.0,94778.0,8.52e-05]
[1736499017504,0.00131893,94783.0,94778.0,8.52e-05]
[1736499018284,0.0809,94787.0,94778.0,0.2111032]
[1736499018285,0.00131893,94785.0,94778.0,0.2111032]
[1736499018639,0.0819,94787.0,94778.0,0.4121212]
[1736499018838,0.0809,94787.0,94778.0,0.4121212]
[1736499019121,0.001,94783.0,94778.0,0.4121212]
[1736499019331,0.001,94783.0,94778.0,0.2011032]
[1736499019708,0.0013189,94786.0,94778.0,0.2011032]
[1736499019905,0.0809,94787.0,94778.0,0.2011032]
[1736499020043,0.0819,94787.0,94778.0,0.2011032]
[1736499020239,0.0819,94787.0,94782.0,0.211009]
[1736499020465,0.001,94787.0,94785.0,0.211002]
[1736499020662,0.001,94787.0,94786.0,0.0006247]
[1736499020872,0.001,94787.0,94786.0,0.10492446]
[1736499021075,0.001,94787.0,94786.0,0.20548583]
[1736499021282,3.8e-07,94790.0,94787.0,0.360999]
[1736499021508,0.0001706,94819.0,94793.0,0.1]
[1736499021710,0.0001706,94819.0,94816.0,0.210934]
[1736499022144,0.0001706,94819.0,94798.0,0.00752]
[1736499022145,0.0789,94816.0,94798.0,0.00752]
[1736499022342,0.00131849,94815.0,94804.0,0.210959]
[1736499022537,0.00131849,94815.0,94800.0,0.210969]
[1736499022686,0.00131849,94815.0,94798.0,0.00752]
[1736499022898,0.15,94813.0,94789.0,0.00752]
[1736499023136,0.15,94813.0,94795.0,0.210979]
[1736499023137,0.210954,94808.0,94795.0,0.210979]
[1736499023282,0.00131862,94807.0,94795.0,0.210979]
[1736499023484,0.00131862,94807.0,94798.0,0.001]
[1736499023707,0.00131862,94807.0,94795.0,0.210979]
[1736499024123,0.210957,94806.0,94791.0,0.21099]
[1736499024348,0.00131862,94805.0,94796.0,0.210978]
[1736499025463,0.00131862,94804.0,94791.0,0.21099]
[1736499025642,0.00131862,94804.0,94791.0,0.421979]
[1736499025848,0.00131862,94804.0,94796.0,0.210979]
[1736499026044,0.00131864,94807.0,94796.0,0.210979]
[1736499026853,0.210957,94806.0,94791.0,0.210989]
[1736499027191,0.00131866,94805.0,94795.0,0.210981]
[1736499028047,0.00131864,94804.0,94795.0,0.210981]
[1736499028260,0.00131864,94808.0,94790.0,0.10263488]
[1736499028469,0.15,94814.0,94803.0,0.210961]
[1736499028641,0.10429976,94813.0,94803.0,0.210961]
[1736499029502,0.15007787,94817.0,94804.0,0.21096]
[1736499029706,0.1513185,94815.0,94804.0,0.20195998]
[1736499030531,0.3622555,94815.0,94803.0,0.210963]
[1736499030718,0.15,94814.0,94803.0,0.210963]
[1736499030940,0.15,94814.0,94794.0,0.0098727]
[1736499031220,0.15,94814.0,94808.0,0.21095]
[1736499031631,0.00131848,94813.0,94808.0,0.21095]
[1736499032040,0.00131848,94813.0,94809.0,0.01072548]
[1736499032240,0.00139635,94817.0,94809.0,0.01072548]
[1736499032679,0.00139635,94817.0,94808.0,0.21095]
[1736499032904,0.15,94816.0,94804.0,0.210961]
[1736499033042,0.15,94814.0,94804.0,0.210961]
[1736499033241,0.0013185,94813.0,94805.0,0.00635032]
[1736499033456,0.0013185,94813.0,94809.0,0.001]
[1736499033864,0.0013185,94813.0,94810.0,0.01057756]
[1736499034267,0.00139636,94817.0,94810.0,0.01057756]
[1736499034471,7.787e-05,94817.0,94810.0,0.01057756]
[1736499035556,0.15,94815.0,94810.0,0.01057756]
[1736499035738,0.00131848,94814.0,94810.0,0.01157756]
[1736499035893,0.15,94815.0,94810.0,0.001]
[1736499036396,0.00139634,94817.0,94811.0,0.210945]
[1736499036525,7.787e-05,94817.0,94811.0,0.2215203]
[1736499036870,0.00139628,94817.0,94811.0,0.2215203]
[1736499037623,7.787e-05,94817.0,94811.0,0.2215203]
[1736499038087,0.00139628,94817.0,94811.0,0.2215203]
[1736499038819,0.00139628,94817.0,94811.0,0.21252028]
[1736499039596,0.00139628,94817.0,94811.0,0.21352028]
[1736499041479,0.00019108,94817.0,94815.0,0.210934]
[1736499042771,0.00019108,94817.0,94815.0,0.211934]
[1736499042954,0.00019108,94817.0,94815.0,0.210934]
[1736499043164,0.00019108,94817.0,94812.0,0.2151659]
[1736499043370,0.00019108,94817.0,94812.0,0.0042229]
[1736499043599,0.00019108,94817.0,94814.0,0.210938]
[1736499043803,0.00019108,94817.0,94814.0,0.20193798]
[1736499044010,0.00019108,94817.0,94816.0,0.210934]
[1736499044224,0.00019108,94817.0,94815.0,0.00634416]
[1736499044431,0.00019108,94817.0,94816.0,0.00634413]
[1736499045269,0.00019108,94817.0,94814.0,0.41287698]
[1736499045422,0.00019108,94817.0,94816.0,0.004214]
[1736499045637,0.00019108,94817.0,94814.0,0.41287698]
[1736499045974,0.00019108,94817.0,94816.0,0.01055813]
[1736499046883,0.00019108,94817.0,94816.0,0.09245813]
[1736499047084,0.00019108,94817.0,94816.0,0.09308221]
[1736499047284,0.00019108,94817.0,94816.0,0.14278221]
[1736499048236,0.00019108,94817.0,94816.0,0.14215813]
[1736499048439,0.00019108,94817.0,94816.0,0.15300403]
[1736499048909,0.00019108,94817.0,94816.0,0.14982166]
[1736499049106,0.00019108,94817.0,94816.0,0.15298216]
[1736499049735,0.00019108,94817.0,94816.0,0.15698216]
[1736499049958,0.00019108,94817.0,94816.0,0.15398216]
[1736499050175,0.00019108,94817.0,94816.0,0.15298216]
[1736499050375,0.00019108,94817.0,94816.0,0.15598216]
[1736499050532,0.00019108,94817.0,94816.0,0.15698216]
[1736499051449,0.00019108,94817.0,94816.0,0.16450216]
[1736499051838,0.00019108,94817.0,94816.0,0.16350216]
[1736499052040,0.00019108,94817.0,94816.0,0.16450216]
[1736499052431,0.00019108,94817.0,94816.0,0.16150216]
[1736499052631,0.00019108,94817.0,94816.0,0.16350216]
[1736499052866,0.00019108,94817.0,94816.0,0.16450216]
[1736499053015,0.00019108,94817.0,94816.0,0.16150216]
[1736499053211,0.00019108,94817.0,94816.0,0.16550216]
[1736499053740,0.00019108,94817.0,94816.0,0.15650214]
[1736499054319,0.00019108,94817.0,94816.0,0.26142574]
[1736499054520,0.00019108,94817.0,94816.0,0.2608019]
[1736499055854,0.00019108,94817.0,94816.0,0.49663416]
[1736499057972,0.00019108,94817.0,94816.0,0.2608019]
[1736499059362,0.00019108,94817.0,94816.0,0.2598019]
[1736499059570,0.00019108,94817.0,94816.0,0.2558019]
[1736499059772,0.00019108,94817.0,94816.0,0.49474552]
[1736499060083,0.00019108,94817.0,94816.0,0.50274552]
[1736499063119,0.00019108,94817.0,94816.0,0.2668019]
[1736499063364,0.00019108,94817.0,94816.0,0.4168019]
[1736499063573,0.00088663,94834.0,94833.0,0.339697]
[1736499063774,0.0001704,94839.0,94838.0,0.210885]
[1736499064028,0.0001704,94839.0,94838.0,0.32270476]
[1736499064244,0.0001704,94839.0,94838.0,0.40570476]
[1736499065608,0.0001704,94839.0,94838.0,0.40018476]
[1736499065810,0.0001704,94839.0,94838.0,0.32470476]
[1736499066092,0.0001704,94839.0,94838.0,0.220405]
[1736499066321,0.0001704,94839.0,94834.0,0.210894]
[1736499066497,0.0001704,94839.0,94838.0,0.011]
[1736499066911,0.0001704,94839.0,94838.0,0.003]
[1736499067324,0.0001704,94839.0,94838.0,0.007]
[1736499067526,0.0001704,94839.0,94838.0,0.003]
[1736499068181,0.07888849,94839.0,94838.0,0.003]
[1736499068384,0.07888849,94839.0,94829.0,0.210904]
[1736499068804,0.07888849,94839.0,94834.0,0.20189398]
[1736499069011,0.07888849,94839.0,94830.0,0.00312936]
[1736499069209,0.07888849,94839.0,94835.0,0.00311824]
[1736499069440,0.07888849,94839.0,94831.0,0.210901]
[1736499069644,0.0001704,94839.0,94836.0,0.00311601]
[1736499070019,0.0001704,94839.0,94835.0,0.21089]
[1736499070331,0.0001704,94839.0,94836.0,0.00311601]
[1736499070557,0.0001704,94839.0,94837.0,0.210888]
[1736499070935,0.0001704,94839.0,94838.0,0.00311157]
[1736499071360,0.0001704,94839.0,94838.0,0.10803475]
[1736499071793,0.0001704,94839.0,94838.0,0.11848467]
[1736499072499,0.0001704,94839.0,94838.0,0.26848467]
[1736499072720,0.0001704,94839.0,94838.0,0.35036125]
[1736499073147,0.0001704,94839.0,94838.0,0.43627493]
[1736499073570,0.0001704,94839.0,94838.0,0.11786125]
[1736499074220,0.0001704,94839.0,94838.0,0.12586125]
[1736499074417,0.0001704,94839.0,94838.0,0.11786125]
[1736499074620,0.0001704,94839.0,94838.0,0.12538125]
[1736499074824,0.0001704,94839.0,94838.0,0.12738125]
[1736499075198,0.0001704,94839.0,94838.0,0.12800445]
[1736499075406,0.0001704,94839.0,94838.0,0.12900445]
[1736499076136,0.0001704,94839.0,94838.0,0.12800445]
[1736499076348,0.0001704,94839.0,94838.0,0.1337978]
[1736499076730,0.0001704,94839.0,94838.0,0.1317978]
[1736499076930,0.0001704,94839.0,94838.0,0.1357978]
[1736499077155,0.0001704,94839.0,94838.0,0.37164715]
[1736499077499,0.0001704,94839.0,94838.0,0.36702395]
[1736499077643,0.0001704,94839.0,94838.0,0.36902395]
[1736499077836,0.0001704,94839.0,94838.0,0.36702395]
[1736499078248,0.0001704,94839.0,94838.0,0.52102395]
[1736499078455,0.0001704,94839.0,94838.0,0.2811746]
[1736499079431,0.0001704,94839.0,94838.0,0.2841746]
[1736499080010,0.0001704,94839.0,94838.0,0.2911746]
[1736499080241,0.0001704,94839.0,94838.0,0.2841746]
[1736499080592,0.0001704,94839.0,94838.0,0.2921746]
[1736499081469,0.0001704,94839.0,94838.0,0.2841746]
[1736499081666,0.0001704,94839.0,94838.0,0.3725746]
[1736499082024,0.0001704,94839.0,94838.0,0.3695746]
[1736499082410,0.0001704,94839.0,94838.0,0.3725746]
[1736499082817,0.0001704,94839.0,94838.0,0.4178746]
[1736499083022,0.0001704,94839.0,94838.0,0.8178746]
[1736499083603,0.0001704,94839.0,94838.0,0.9178746]
[1736499083995,9.6e-07,94843.0,94842.0,0.640877]
[1736499084207,4.8e-07,94851.0,94850.0,0.911459]
[1736499084389,2.8e-07,94855.0,94854.0,0.54085]
[1736499084588,0.00013924,94855.0,94854.0,0.64514976]
[1736499085226,0.00013924,94855.0,94854.0,0.67788373]
[1736499085599,0.00013924,94855.0,94854.0,0.64514976]
[1736499085820,0.00013924,94855.0,94854.0,0.54514976]
[1736499086229,0.00013924,94855.0,94854.0,0.54714976]
[1736499086803,0.00013924,94855.0,94854.0,0.82965702]
[1736499087009,0.00013924,94855.0,94854.0,0.86081972]
[1736499087212,0.00013924,94855.0,94854.0,0.86829972]
[1736499087409,0.00013924,94855.0,94854.0,0.58579246]
[1736499088061,0.00013924,94855.0,94854.0,0.59486845]
[1736499088971,0.00013924,94855.0,94854.0,0.51486845]
[1736499089587,0.00013924,94855.0,94854.0,0.51286845]
[1736499090007,0.00013924,94855.0,94854.0,0.51386845]
[1736499090240,0.00013924,94855.0,94854.0,0.50786845]
[1736499091190,0.00013924,94855.0,94854.0,0.51086845]
[1736499091393,0.00013924,94855.0,94854.0,0.50686845]
[1736499091608,0.00013924,94855.0,94854.0,0.51359341]
[1736499092095,0.00013924,94855.0,94854.0,0.51259341]
[1736499092497,0.00013924,94855.0,94854.0,0.74917058]
[1736499092903,0.00013924,94855.0,94854.0,0.51259341]
[1736499093357,0.00013924,94855.0,94854.0,0.51359341]
[1736499093511,0.00013924,94855.0,94854.0,0.51659341]
[1736499093719,0.00013924,94855.0,94854.0,0.51359341]
[1736499094124,0.00013924,94855.0,94854.0,0.51759341]
[1736499094326,0.00013924,94855.0,94854.0,0.51359341]
[1736499094596,0.00013924,94855.0,94854.0,0.7482154]
[1736499094831,0.00013924,94855.0,94854.0,0.7522154]
[1736499095029,0.00013924,94855.0,94854.0,0.7616134]
[1736499095351,0.00013924,94855.0,94854.0,0.6051334]
[1736499095545,0.00013924,94855.0,94854.0,0.46820927]
[1736499096140,0.00013924,94855.0,94854.0,0.45881127]
[1736499096344,0.00013924,94855.0,94854.0,0.45781127]
[1736499096498,0.00013924,94855.0,94854.0,0.22218928]
[1736499097647,0.00013924,94855.0,94854.0,0.21818928]
[1736499099864,0.00013924,94855.0,94854.0,0.21818928]
[1736499100218,0.00013924,94855.0,94854.0,0.22566928]
[1736499101046,0.00013924,94855.0,94854.0,0.22666928]
[1736499101267,0.00013924,94855.0,94854.0,0.00733928]
[1736499101508,0.08273924,94855.0,94854.0,0.00733928]
[1736499101759,0.08273924,94855.0,94845.0,0.21087]
[1736499101991,0.0013179,94854.0,94844.0,0.23562199]
[1736499102425,0.0013179,94854.0,94847.0,0.210865]
[1736499102645,0.0013179,94854.0,94846.0,0.210866]
[1736499104583,0.0013179,94854.0,94852.0,0.210854]
[1736499104782,0.08273924,94855.0,94852.0,0.210854]
[1736499105597,0.08273924,94855.0,94854.0,0.21085]
[1736499106135,0.08273924,94855.0,94854.0,0.21392599]
[1736499106344,0.00013924,94855.0,94854.0,0.0073555]
[1736499106954,0.00013924,94855.0,94847.0,0.210865]
[1736499107378,0.00013924,94855.0,94848.0,0.00308933]
[1736499108840,0.00013924,94855.0,94849.0,0.210861]
[1736499109250,0.00013924,94855.0,94850.0,0.00308489]
[1736499109585,0.00013924,94855.0,94847.0,0.210865]
[1736499109791,0.00013924,94855.0,94851.0,0.00308266]
[1736499109976,0.00013924,94855.0,94847.0,0.210865]
[1736499110287,0.00013924,94855.0,94852.0,0.00308044]
[1736499110612,0.00013924,94855.0,94847.0,0.210865]
[1736499110812,0.00013924,94855.0,94853.0,0.00307822]
[1736499111062,0.00013924,94855.0,94847.0,0.210865]
[1736499111266,0.00013924,94855.0,94854.0,0.00307599]
[1736499111419,0.00013924,94855.0,94848.0,0.00430696]
[1736499111621,0.00013924,94855.0,94847.0,0.210865]
[1736499112045,0.00013924,94855.0,94848.0,0.00308933]
[1736499113549,0.00013924,94855.0,94849.0,0.210861]
[1736499113746,0.00013924,94855.0,94849.0,0.21394811]
[1736499114663,0.00013924,94855.0,94849.0,0.00308711]
[1736499115072,0.00013924,94855.0,94847.0,0.210865]
[1736499115232,0.00013924,94855.0,94850.0,0.00308489]
[1736499115441,0.00013924,94855.0,94847.0,0.210865]
[1736499115691,0.00013924,94855.0,94851.0,0.00308266]
[1736499115897,0.00013924,94855.0,94847.0,0.210865]
[1736499116212,0.00013924,94855.0,94852.0,0.00308044]
[1736499116421,0.00013924,94855.0,94847.0,0.210865]
[1736499116630,0.00013924,94855.0,94853.0,0.00307822]
[1736499116860,0.00013924,94855.0,94847.0,0.210865]
[1736499117063,0.00013924,94855.0,94854.0,0.00307599]
[1736499117237,0.00013924,94855.0,94848.0,0.00430696]
[1736499117536,0.00013924,94855.0,94849.0,0.00308711]
[1736499117740,0.00013924,94855.0,94847.0,0.210865]
[1736499118367,0.00013924,94855.0,94848.0,0.00308933]
[1736499118991,0.00013924,94855.0,94849.0,0.210861]
[1736499119398,0.00013924,94855.0,94850.0,0.00308489]
[1736499119850,0.00013924,94855.0,94849.0,0.210861]
[1736499120030,0.00013924,94855.0,94851.0,0.00308266]
[1736499120235,0.00013924,94855.0,94850.0,0.00308489]
[1736499120431,0.00013924,94855.0,94852.0,0.00308044]
[1736499120637,0.00145713,94855.0,94851.0,0.00308266]
[1736499120815,0.00145713,94855.0,94848.0,0.210862]
[1736499121037,0.00145713,94855.0,94852.0,0.00308044]
[1736499121257,0.00145713,94855.0,94848.0,0.210862]
[1736499121459,0.00145713,94855.0,94853.0,0.0073816]
[1736499121791,0.00145713,94855.0,94854.0,0.00307599]
[1736499121792,0.00013924,94855.0,94854.0,0.00307599]
[1736499121924,0.00013924,94855.0,94848.0,0.210862]
[1736499122135,0.00013924,94855.0,94854.0,0.00430336]
[1736499122335,0.00013924,94855.0,94848.0,0.210862]
[1736499122538,0.00013924,94855.0,94854.0,0.00430336]
[1736499122741,0.00145713,94855.0,94844.0,0.210871]
[1736499122943,0.00145713,94855.0,94854.0,0.00430336]
[1736499123168,0.00145713,94855.0,94844.0,0.421743]
[1736499123368,0.00145713,94855.0,94854.0,0.00737935]
[1736499123567,0.00145713,94855.0,94844.0,0.421743]
[1736499123768,0.00145713,94855.0,94854.0,0.00737935]
[1736499124028,0.00013924,94855.0,94848.0,0.210862]
[1736499124456,0.00013924,94855.0,94849.0,0.00430347]
[1736499124817,0.00013924,94855.0,94850.0,0.00308489]
[1736499125243,0.00013924,94855.0,94849.0,0.00430347]
[1736499125535,0.00013924,94855.0,94846.0,0.210867]
[1736499125536,0.00013924,94855.0,94850.0,0.00430345]
[1736499125980,0.00145716,94855.0,94846.0,0.210867]
[1736499126176,0.00145716,94855.0,94851.0,0.00430343]
[1736499126383,0.00145716,94855.0,94850.0,0.210858]
[1736499126588,0.00145716,94855.0,94852.0,0.00430341]
[1736499126786,0.00145716,94855.0,94846.0,0.210867]
[1736499126787,0.00013924,94855.0,94854.0,0.21085]
[1736499127232,0.00013924,94855.0,94854.0,0.21515336]
[1736499127800,0.00013924,94855.0,94854.0,0.29755336]
[1736499132163,0.00013924,94855.0,94854.0,0.00430336]
[1736499132360,0.00013924,94855.0,94854.0,0.23992535]
[1736499132788,0.00013924,94855.0,94854.0,0.00430336]
[1736499133707,0.00013924,94855.0,94852.0,0.210853]
[1736499133940,0.00013924,94855.0,94854.0,0.00428479]
[1736499134346,0.00013924,94855.0,94852.0,0.210853]
[1736499134584,0.00013924,94855.0,94854.0,0.00428479]
[1736499134807,0.00013924,94855.0,94850.0,0.00748]
[1736499135012,0.00013924,94855.0,94854.0,0.0042952]
[1736499135217,0.00013924,94855.0,94851.0,0.210857]
[1736499135807,0.00013924,94855.0,94852.0,0.00429524]
[1736499136171,0.00013924,94855.0,94847.0,0.210865]
[1736499136380,0.00013924,94855.0,94853.0,0.00429522]
[1736499136579,0.00013924,94855.0,94852.0,0.210853]
[1736499136807,0.00013924,94855.0,94854.0,0.00308439]
[1736499136981,0.0014571,94855.0,94853.0,0.00308441]
[1736499137195,0.00013924,94855.0,94852.0,0.210853]
[1736499137367,0.00013924,94855.0,94854.0,0.00308439]
[1736499137562,0.00013924,94855.0,94847.0,0.210865]
[1736499137813,0.00013924,94855.0,94854.0,0.00308439]
[1736499138014,0.00013924,94855.0,94845.0,0.210868]
[1736499138400,0.00013924,94855.0,94847.0,0.210865]
[1736499138807,0.00013924,94855.0,94848.0,0.00308453]
[1736499139733,0.00013924,94855.0,94849.0,0.210861]
[1736499140145,0.00013924,94855.0,94849.0,0.2139455]
[1736499140523,0.00013924,94855.0,94849.0,0.0030845]
[1736499140870,0.00013924,94855.0,94845.0,0.44648999]
[1736499141286,0.00013924,94855.0,94846.0,0.00309054]
[1736499141501,0.00013924,94855.0,94847.0,0.210865]
[1736499141741,0.00013924,94855.0,94848.0,0.00309049]
[1736499141950,0.00013924,94855.0,94845.0,0.23562199]
[1736499142157,0.00145717,94855.0,94845.0,0.23562199]
[1736499142364,0.00145717,94855.0,94846.0,0.210868]
[1736499142535,0.00145717,94855.0,94846.0,0.21395854]
[1736499143161,0.00131792,94854.0,94846.0,0.21395854]
[1736499143322,0.00013924,94855.0,94847.0,0.210865]
[1736499143528,0.00013924,94855.0,94847.0,0.21395552]
[1736499144938,0.00145716,94855.0,94847.0,0.21395552]
[1736499146716,0.00145716,94855.0,94847.0,0.44957751]
[1736499147464,0.00013924,94855.0,94851.0,0.210856]
[1736499147875,0.00013924,94855.0,94852.0,0.0030904]
[1736499148824,0.00013924,94855.0,94853.0,0.210852]
[1736499149245,0.00013924,94855.0,94854.0,0.00299405]
[1736499150814,0.00013924,94855.0,94854.0,0.23963805]
[1736499151691,0.00013924,94855.0,94854.0,0.00299405]
[1736499152731,0.00013924,94855.0,94854.0,0.23963805]
[1736499153355,0.00013924,94855.0,94854.0,0.00299405]
[1736499154004,0.00013924,94855.0,94854.0,0.0024898]
[1736499157151,0.00013924,94855.0,94854.0,0.23924059]
[1736499157339,0.00013924,94855.0,94854.0,0.23675079]
[1736499157628,0.00013924,94855.0,94854.0,0.23924059]
[1736499158076,0.00013924,94855.0,94854.0,0.0024898]
[1736499158463,0.00013924,94855.0,94852.0,0.44760479]
[1736499158700,0.00013924,94855.0,94854.0,0.0024898]
[1736499158905,0.00013924,94855.0,94853.0,0.00248982]
[1736499159182,0.00013924,94855.0,94854.0,0.0024898]
[1736499159385,0.00013924,94855.0,94852.0,0.44760479]
[1736499159541,0.00013924,94855.0,94854.0,0.0024898]
[1736499159746,0.00013924,94855.0,94853.0,0.23675079]
[1736499159929,0.00013924,94855.0,94854.0,0.00391091]
[1736499163694,0.00013924,94855.0,94852.0,0.210854]
[1736499163870,0.00013924,94855.0,94854.0,0.00391091]
[1736499164403,0.00013924,94855.0,94852.0,0.20185398]
[1736499164616,0.00013924,94855.0,94854.0,0.00391091]
[1736499164827,0.00013924,94855.0,94852.0,0.20185398]
[1736499165093,0.00013924,94855.0,94854.0,0.00391091]
[1736499165294,0.00013924,94855.0,94853.0,0.00391206]
[1736499165502,0.00013924,94855.0,94854.0,0.00391091]
[1736499165946,0.00013924,94855.0,94852.0,0.20185398]
[1736499166148,0.00013924,94855.0,94854.0,0.00391091]
[1736499166525,0.00013924,94855.0,94852.0,0.20185398]
[1736499166762,0.00013924,94855.0,94854.0,0.00391091]
[1736499166968,0.00013924,94855.0,94853.0,0.00391206]
[1736499167166,0.00013924,94855.0,94852.0,0.20185398]
[1736499167369,0.00013924,94855.0,94854.0,0.00391091]
[1736499167579,0.00013924,94855.0,94852.0,0.20185398]
[1736499167734,0.00013924,94855.0,94854.0,0.00391091]
[1736499167930,0.00013924,94855.0,94849.0,0.23675079]
[1736499168365,0.00013924,94855.0,94850.0,0.210859]
[1736499168716,0.00013924,94855.0,94850.0,0.21477778]
[1736499168934,0.00013924,94855.0,94850.0,0.00391878]
[1736499169148,0.00145712,94855.0,94849.0,0.23675079]
[1736499169346,0.00145712,94855.0,94851.0,0.00391841]
[1736499169601,0.00145712,94855.0,94847.0,0.210864]
[1736499169802,0.00145712,94855.0,94852.0,0.00391727]
[1736499170005,0.00145712,94855.0,94847.0,0.210864]
[1736499170174,0.00013924,94855.0,94853.0,0.00391612]
[1736499170382,0.00013924,94855.0,94847.0,0.421729]
[1736499170701,0.00013924,94855.0,94854.0,0.00391498]
[1736499171017,0.00013924,94855.0,94847.0,0.210864]
[1736499171272,0.00013924,94855.0,94854.0,0.00391498]
[1736499171458,0.00013924,94855.0,94850.0,0.210857]
[1736499171680,0.00013924,94855.0,94854.0,0.00391498]
[1736499171853,0.00013924,94855.0,94850.0,0.210857]
[1736499172049,0.00013924,94855.0,94854.0,0.00391498]
[1736499172379,0.00013924,94855.0,94850.0,0.210857]
[1736499172558,0.00013924,94855.0,94854.0,0.00392497]
[1736499172771,0.00013924,94855.0,94850.0,0.210857]
[1736499172975,0.00013924,94855.0,94854.0,0.00392629]
[1736499173175,0.00013924,94855.0,94850.0,0.210857]
[1736499173370,0.00013924,94855.0,94854.0,0.00392629]
[1736499173581,0.00013924,94855.0,94847.0,0.210864]
[1736499173784,0.00013924,94855.0,94854.0,0.00392629]
[1736499173984,0.00013924,94855.0,94847.0,0.210864]
[1736499174157,0.00013924,94855.0,94854.0,0.00392629]
[1736499174355,0.00013924,94855.0,94847.0,0.421729]
[1736499174538,0.00013924,94855.0,94854.0,0.00392629]
[1736499174738,0.00013924,94855.0,94847.0,0.421729]
[1736499175025,0.00013924,94855.0,94854.0,0.00392629]
[1736499175160,0.08213924,94855.0,94846.0,0.23675079]
[1736499175361,0.00131793,94854.0,94846.0,0.23675079]
[1736499175831,0.00131793,94854.0,94844.0,0.210871]
[1736499176033,0.21216793,94854.0,94843.0,0.210874]
[1736499176189,0.21085,94854.0,94843.0,0.210874]
[1736499176405,0.08213924,94855.0,94843.0,0.210874]
[1736499176748,0.00131794,94854.0,94843.0,0.210874]
[1736499178469,0.00131794,94854.0,94843.0,0.421748]
[1736499179300,0.00131794,94854.0,94843.0,0.210874]
[1736499179479,0.00131794,94854.0,94843.0,0.421748]
[1736499180248,0.00131794,94854.0,94843.0,0.210874]
[1736499180393,0.00131794,94854.0,94847.0,0.210865]
[1736499181406,0.00131794,94854.0,94848.0,0.00393396]
[1736499182850,0.00131794,94854.0,94843.0,0.44762479]
[1736499183053,0.00131794,94854.0,94849.0,0.00393281]
[1736499183259,0.00131794,94854.0,94844.0,0.210872]
[1736499183501,0.00131794,94854.0,94850.0,0.00393167]
[1736499183741,0.00131794,94854.0,94844.0,0.210872]
[1736499183913,0.00131794,94854.0,94851.0,0.00393052]
[1736499184276,0.00131794,94854.0,94844.0,0.210872]
[1736499184691,0.00131794,94854.0,94846.0,0.210868]
[1736499185135,0.00131794,94854.0,94847.0,0.0039351]
[1736499185339,0.21216994,94854.0,94847.0,0.0039351]
[1736499185673,0.210852,94854.0,94848.0,0.00337827]
[1736499185876,0.00131797,94853.0,94848.0,0.00337827]
[1736499186052,0.210854,94852.0,94842.0,0.23675079]
[1736499186262,0.00131801,94851.0,94849.0,0.00393702]
[1736499186475,0.00131801,94851.0,94842.0,0.23675079]
[1736499186863,0.210859,94850.0,94843.0,0.0039439]
[1736499187057,0.00131803,94849.0,94843.0,0.0039439]
[1736499187283,0.00131803,94849.0,94839.0,0.210881]
[1736499187489,0.00131803,94849.0,94844.0,0.00394275]
[1736499187694,0.00131803,94849.0,94838.0,0.23675079]
[1736499187902,0.00131804,94854.0,94845.0,0.0039416]
[1736499188116,0.00131804,94854.0,94846.0,0.210868]
[1736499188322,0.00131804,94854.0,94846.0,0.21480846]
[1736499188500,0.08345722,94855.0,94846.0,0.21480846]
[1736499188701,0.10575698,94855.0,94846.0,0.21480846]
[1736499188880,0.00013924,94855.0,94847.0,0.210865]